fUSD/lending_fUSD_20260202
["ID","MTS","AMOUNT","RATE_DAILY","PERIOD"]
[404249223,1770001843487,-250.0,0.00017099,2]
[404249225,1770001843496,-250.0,0.00017099,2]
[404249227,1770001843506,-250.0,0.00017099,2]
[404249229,1770001843515,-250.0,0.00017099,2]
[404249231,1770001843526,-250.0,0.00017099,2]
[404249233,1770001843535,-250.0,0.00017099,2]
[404249235,1770001843545,-250.0,0.00017099,2]
[404249237,1770001843555,-250.0,0.00017099,2]
[404249239,1770001843564,-250.0,0.00017099,2]
[404249241,1770001843579,-168.90333538,0.00017099,2]
[404249243,1770001843588,-209.40437684,0.00017099,2]
[404249245,1770001843598,-500.0,0.00017099,2]
[404249247,1770001843607,-500.0,0.00017099,2]
[404249249,1770001843616,-500.0,0.00017099,2]
[404249251,1770001843624,-500.0,0.00017099,2]
[404249253,1770001843634,-500.0,0.00017099,2]
[404249255,1770001843644,-500.0,0.00017099,2]
[404249257,1770001843654,-500.0,0.00017099,2]
[404249259,1770001843663,-500.0,0.00017099,2]
[404249261,1770001843672,-500.0,0.00017099,2]
[404249263,1770001843681,-500.0,0.00017099,2]
[404249265,1770001843691,-500.0,0.00017099,2]
[404249267,1770001843700,-500.0,0.00017099,2]
[404249269,1770001843709,-500.0,0.00017099,2]
[404249272,1770001843719,-500.0,0.00017099,2]
[404249274,1770001843728,-500.0,0.00017099,2]
[404249276,1770001843738,-500.0,0.00017099,2]
[404249278,1770001843747,-500.0,0.00017099,2]
[404249280,1770001843756,-500.0,0.00017099,2]
[404249282,1770001843765,-500.0,0.00017099,2]
[404249284,1770001843775,-500.0,0.00017099,2]
[404249286,1770001843784,-500.0,0.00017099,2]
[404249288,1770001843794,-500.0,0.00017099,2]
[404249290,1770001843803,-217.15233878,0.00017154,2]
[404249292,1770001843813,-166.66,0.00017158,2]
[404249294,1770001843825,-225.18697532,0.00017209,2]
[404249296,1770001843834,-1043.74227663,0.00017238,2]
[404249298,1770001843844,-1000.0,0.0001726,2]
[404249300,1770001843854,-233.51889341,0.00017264,2]
[404249302,1770001843863,-166.66,0.00017275,2]
[404249304,1770001843872,-500.0,0.00017302,2]
[404249306,1770001843882,-7958.92687391,0.00017307,2]
[404249308,1770001843891,-1008.230722,0.00017311,2]
[404249310,1770001843900,-502.56224964,0.00017311,2]
[404249312,1770001843910,-1500.0,0.00017311,2]
[404249314,1770001843919,-1500.0,0.00017311,2]
[404249316,1770001843929,-1500.0,0.00017311,2]
[404249318,1770001843938,-1500.0,0.00017311,2]
[404249320,1770001843947,-1500.0,0.00017311,2]
[404249322,1770001843957,-343.08326797,0.00017311,2]
[404249324,1770001843967,-240.83933027,0.00017311,2]
[404249326,1770001843976,-502.13331368,0.00017311,2]
[404249329,1770001843989,-1500.0,0.00017311,2]
[404249331,1770001843999,-1500.0,0.00017311,2]
[404249333,1770001844009,-163.44066637,0.00017311,2]
[404249335,1770001844019,-505.45817911,0.00017311,2]
[404249337,1770001844030,-622.87168328,0.00017311,2]
[404249339,1770001844039,-1500.0,0.00017311,2]
[404249342,1770001844048,-1001.51187031,0.00017311,2]
[404249344,1770001844061,-1500.0,0.00017311,2]
[404249346,1770001844075,-1500.0,0.00017311,2]
[404249348,1770001844084,-1500.0,0.00017311,2]
[404249350,1770001844094,-503.10188966,0.00017311,2]
[404249352,1770001844104,-1500.0,0.00017311,2]
[404249354,1770001844113,-1500.0,0.00017311,2]
[404249356,1770001844122,-776.88278142,0.00017311,2]
[404249358,1770001844131,-504.6853335,0.00017311,2]
[404249360,1770001844141,-4797.72527341,0.00017311,2]
[404249362,1770001844150,-242.15909246,0.00017319,2]
[404249364,1770001844160,-159.04434353,0.00017333,2]
[404249366,1770001844169,-731.28,0.00017351,2]
[404249368,1770001844179,-150.0,0.00017356,2]
[404249370,1770001844189,-200.0,0.00017356,2]
[404249372,1770001844198,-228.629,0.00017356,2]
[404249375,1770001844208,-277.537,0.00017356,2]
[404249377,1770001844219,-196.165,0.00017356,2]
[404249379,1770001844229,-165.436,0.00017356,2]
[404249381,1770001844238,-158.676,0.00017356,2]
[404249383,1770001844247,-199.072,0.00017356,2]
[404249385,1770001844258,-285.665,0.00017356,2]
[404249387,1770001844267,-151.0,0.00017356,2]
[404249389,1770001844277,-151.345,0.00017356,2]
[404249391,1770001844287,-3497.391,0.00017356,2]
[404249393,1770001844297,-1338.357,0.00017356,2]
[404249395,1770001844307,-1410.0,0.00017356,2]
[404249397,1770001844319,-728.464,0.00017356,2]
[404249399,1770001844329,-923.66557003,0.00017366,2]
[404249401,1770001844338,-251.11897888,0.00017374,2]
[404249403,1770001844348,-2351.0,0.00017388,2]
[404249406,1770001844359,-502.0,0.00017397,2]
[404249408,1770001844369,-1500.0,0.000174,2]
[404249410,1770001844378,-260.4103811,0.00017429,2]
[404249411,1770001844388,-150.00040582,0.00017454,2]
[404249412,1770001844397,-270.0455652,0.00017484,2]
[404249413,1770001844407,-1000.0,0.00017534,2]
[404249414,1770001844416,-280.03725112,0.00017539,2]
[404249416,1770001844426,-290.39862941,0.00017594,2]
[404249418,1770001844436,-7958.92687391,0.00017603,2]
[404249419,1770001844445,-4797.72527341,0.00017606,2]
[404249421,1770001844454,-1899.6725397,0.0001761,2]
[404249423,1770001844465,-166.66,0.0001761,2]
[404249424,1770001844475,-2758.12238654,0.0001764,2]
[404249425,1770001844485,-1481.23780761,0.00017647,2]
[404249426,1770001844495,-181.08010149,0.00017647,2]
[404249427,1770001844504,-217.15233878,0.00017647,2]
[404249428,1770001844514,-217.15233878,0.00017647,2]
[404249429,1770001844523,-879.69414454,0.00017647,2]
[404249431,1770001844534,-301.1433787,0.00017649,2]
[404249432,1770001844543,-166.66,0.00017658,2]
[404249433,1770001844553,-163.0,0.0001768,2]
[404249434,1770001844562,-269.0,0.0001768,2]
[404249435,1770001844575,-1515.14085219,0.00017695,2]
[404249436,1770001844585,-25000.0,0.00017715,3]
[404249437,1770001844594,-25000.0,0.00017724,3]
[404249439,1770001844604,-25000.0,0.00017733,3]
[404249440,1770001844613,-25000.0,0.00017742,3]
[404249441,1770001844622,-298.56500065,0.00017749,2]
[404249442,1770001844631,-25000.0,0.0001775,3]
[404249443,1770001844641,-25000.0,0.00017759,3]
[404249444,1770001844650,-25000.0,0.00017768,3]
[404249445,1770001844660,-433.0,0.00017771,2]
[404249447,1770001844669,-25000.0,0.00017777,3]
[404249448,1770001844679,-25000.0,0.00017786,3]
[404249449,1770001844688,-25000.0,0.00017794,3]
[404249450,1770001844697,-1000.0,0.000178,2]
[404249451,1770001844707,-25000.0,0.00017803,3]
[404249452,1770001844716,-500.0,0.00017808,2]
[404249453,1770001844726,-1000.0,0.00017808,2]
[404249455,1770001844735,-25000.0,0.00017812,3]
[404249456,1770001844745,-2000.0,0.0001782,2]
[404249457,1770001844754,-2000.0,0.0001782,2]
[404249458,1770001844763,-2000.0,0.0001782,2]
[404249459,1770001844773,-2000.0,0.0001782,2]
[404249460,1770001844783,-25000.0,0.00017821,3]
[404249461,1770001844792,-25000.0,0.0001783,3]
[404249462,1770001844801,-25000.0,0.00017838,3]
[404249463,1770001844811,-25000.0,0.00017847,3]
[404249464,1770001844822,-500.0,0.0001785,2]
[404249465,1770001844832,-200.0,0.00017855,2]
[404249466,1770001844842,-25000.0,0.00017856,3]
[404249467,1770001844851,-200.0,0.00017856,2]
[404249468,1770001844860,-200.0,0.00017856,2]
[404249469,1770001844870,-1128.18837233,0.00017859,2]
[404249470,1770001844880,-1001.57448357,0.00017859,2]
[404249471,1770001844889,-1002.76473862,0.00017859,2]
[404249472,1770001844899,-641.39959105,0.00017859,2]
[404249473,1770001844908,-315.28060531,0.00017859,2]
[404249474,1770001844917,-1447.23523297,0.00017859,2]
[404249475,1770001844927,-1502.53462592,0.00017859,2]
[404249476,1770001844937,-1504.86417643,0.00017859,2]
[404249477,1770001844947,-1502.03881526,0.00017859,2]
[404249478,1770001844957,-1001.65103435,0.00017859,2]
[404249479,1770001844968,-1001.61630428,0.00017859,2]
[404249480,1770001844978,-2001.81664462,0.00017859,2]
[404249481,1770001844989,-1189.68040771,0.00017859,2]
[404249482,1770001845000,-500.0,0.00017863,2]
[404249483,1770001845010,-25000.0,0.00017865,3]
[404249484,1770001845020,-25000.0,0.00017874,3]
[404249485,1770001845029,-286.0,0.00017881,2]
[404249486,1770001845039,-25000.0,0.00017882,3]
[404249487,1770001845049,-868.9,0.00017891,2]
[404249488,1770001845059,-25000.0,0.00017891,3]
[404249489,1770001845071,-10139.4576,0.000179,2]
[404249490,1770001845081,-417.14503412,0.000179,2]
[404249491,1770001845091,-25000.0,0.000179,3]
[404249492,1770001845100,-10000.0,0.000179,2]
[404249494,1770001845110,-4797.72527341,0.000179,2]
[404249496,1770001845120,-8217.94244244,0.000179,3]
[404249498,1770001845129,-330.62584881,0.000179,3]
[404249500,1770001845139,-172.43445642,0.000179,2]
[404249502,1770001845148,-3047.135686,0.000179,2]
[404249504,1770001845157,-7958.92687391,0.000179,2]
[404249505,1770001845167,-923.66557003,0.000179,2]
[404249506,1770001845176,-500.0,0.00017918,2]
[404249507,1770001845185,-390.301032,0.00017956,2]
[404249508,1770001845195,-348.13827783,0.00017962,2]
[404249509,1770001845204,-506.1208044,0.00017972,2]
[404249510,1770001845214,-502.60776792,0.00017982,2]
[404249511,1770001845224,-433.0,0.00017989,2]
[404249512,1770001845234,-298.56500065,0.0001799,2]
[404249513,1770001845243,-84609.1989221,0.00017994,2]
[404249514,1770001845252,-263833.637775,0.00017994,2]
[404249515,1770001845262,-4861.6728774,0.00017994,2]
[404249516,1770001845271,-75030.8625446,0.00017994,2]
[404249517,1770001845280,-1327.5643764,0.00017994,2]
[404249518,1770001845290,-150.0,0.00017999,2]
[404249519,1770001845299,-154.57158237,0.00017999,2]
[404249520,1770001845309,-299.809,0.00017999,2]
[404249521,1770001845319,-307.79570543,0.00017999,2]
[404249523,1770001845328,-300.0,0.00017999,2]
[404249525,1770001845338,-670.83228666,0.00017999,2]
[404249527,1770001845347,-300.0,0.00017999,2]
[404249529,1770001845357,-300.0,0.00017999,2]
[404249531,1770001845366,-300.0,0.00017999,2]
[404249533,1770001845375,-666.0,0.00017999,2]
[404249535,1770001845385,-766820.06551344,0.00018,2]
[404249553,1770001845588,-214.26310168,0.00016338,2]
[404249554,1770001845655,-496.12576995,0.00018,2]
[404249555,1770001845739,-3452.35830693,0.00016338,2]
[404249556,1770001845749,-4201.74169307,0.00018,2]
[404249557,1770001845761,-5762.7252957,0.00018,2]
[404249558,1770001845793,-1000.13754035,0.00018,2]
[404249956,1770002787844,250.0,0.00017808,30]
[404249958,1770002788239,250.0,0.00017808,30]
[404249959,1770002788546,250.0,0.00017808,30]
[404249960,1770002788853,250.0,0.00017808,30]
[404249961,1770002789157,89.87092564,0.00017808,30]
[404249962,1770002789220,145.12907436,0.00017808,30]
[404250115,1770002901929,33497.81325665,0.00015,3]
[404250174,1770003036951,-329.6288,0.00013866,2]
[404250178,1770003036962,-265.0,0.00013936,2]
[404250181,1770003036972,-1798.63372848,0.00013936,2]
[404250189,1770003037006,-982.84400932,0.00013936,2]
[404250191,1770003037016,-9.71284518,0.00013947,2]
[404250194,1770003037028,-990.28715482,0.00013947,2]
[404250196,1770003037037,-591.22636008,0.00013947,2]
[404250198,1770003037047,-1395.05882298,0.00014076,2]
[404250207,1770003037122,-853.47117702,0.00014076,2]
[404250208,1770003037132,-1435.36,0.00014136,2]
[404250210,1770003037142,-1200.0,0.0001417,2]
[404250211,1770003037152,-150.0,0.00014171,2]
[404250213,1770003037162,-295.36,0.000143,2]
[404250214,1770003037171,-300.0,0.00014353,2]
[404250216,1770003037181,-1200.0,0.00014354,2]
[404250217,1770003037191,-150.0,0.00014372,2]
[404250219,1770003037203,-500.0,0.00014373,2]
[404250220,1770003037213,-446.80882298,0.00014373,2]
[404250222,1770003037226,-122.36069541,0.00014373,2]
[404250223,1770003037236,-500.0,0.00014373,2]
[404250224,1770003037245,-501.3681504,0.00014373,2]
[404250225,1770003037255,-500.88887474,0.00014373,2]
[404250226,1770003037265,-500.44335108,0.00014373,2]
[404250227,1770003037275,-500.7756559,0.00014373,2]
[404250229,1770003037284,-177.72668829,0.00014373,2]
[404250230,1770003037294,-500.0,0.00014373,2]
[404250231,1770003037303,-501.3792678,0.00014373,2]
[404250232,1770003037313,-500.0,0.00014373,2]
[404250233,1770003037323,-500.0,0.00014373,2]
[404250234,1770003037335,-501.73498825,0.00014373,2]
[404250236,1770003037344,-503.39541784,0.00014373,2]
[404250239,1770003037354,-217.67941742,0.00014373,2]
[404250241,1770003037372,-169.68447442,0.00014373,2]
[404250282,1770003037670,-170.70108958,0.00014373,2]
[404250284,1770003037682,-440.38901775,0.00014373,2]
[404250286,1770003037697,-60.0682597,0.00014373,2]
[404250288,1770003037708,-500.0,0.00014373,2]
[404250291,1770003037719,-500.0,0.00014373,2]
[404250293,1770003037730,-500.0,0.00014373,2]
[404250295,1770003037740,-644.9317403,0.00014595,2]
[404250297,1770003037754,-572.0678,0.00014595,2]
[404250306,1770003037824,-1568.25,0.00014595,2]
[404250308,1770003037836,-4333.18844273,0.00014595,2]
[404250309,1770003037846,-1567.15858578,0.00014679,2]
[404250310,1770003037856,-175.59407318,0.00014854,2]
[404250311,1770003037884,-235.40592682,0.00014854,2]
[404250312,1770003037895,-1313.4333,0.00014885,2]
[404250313,1770003037906,-1830.96077318,0.00014887,2]
[404250314,1770003037947,-5904.75702472,0.00014887,2]
[404250315,1770003037957,-497.17741184,0.00014887,2]
[404250316,1770003037968,-769.7213084,0.00014887,2]
[404250317,1770003037979,-2560.8328478,0.00014887,2]
[404250318,1770003037990,-330.62584882,0.000149,2]
[404250319,1770003038000,-214.26310168,0.000149,2]
[404250320,1770003038011,-3047.13568602,0.000149,2]
[404250321,1770003038022,-164.27114829,0.00014903,2]
[404250322,1770003038033,-500.0,0.00014921,2]
[404250323,1770003038043,-501.85563994,0.00014921,2]
[404250324,1770003038054,-1007.62751642,0.00014921,2]
[404250325,1770003038064,-1006.48448096,0.00014921,2]
[404250326,1770003038075,-1003.39652694,0.00014921,2]
[404250327,1770003038085,-304.67677258,0.00014921,2]
[404250328,1770003038097,-266.87543057,0.00014975,2]
[404250329,1770003038107,-500.0,0.00014976,2]
[404250330,1770003038123,-200.0,0.00014976,2]
[404250331,1770003038133,-151.0,0.00014976,2]
[404250332,1770003038144,-500.0,0.00014976,2]
[404250333,1770003038154,-500.0,0.00014976,2]
[404250334,1770003038165,-500.0,0.00014976,2]
[404250337,1770003038176,-500.0,0.00014976,2]
[404250339,1770003038188,-500.0,0.00014976,2]
[404250341,1770003038197,-500.0,0.00014976,2]
[404250343,1770003038208,-500.0,0.00014976,2]
[404250344,1770003038218,-500.0,0.00014976,2]
[404250346,1770003038228,-500.0,0.00014976,2]
[404250348,1770003038238,-151.0,0.00014976,2]
[404250350,1770003038248,-500.0,0.00014976,2]
[404250352,1770003038259,-151.0,0.00014976,2]
[404250354,1770003038268,-500.0,0.00014976,2]
[404250356,1770003038278,-151.0,0.00014976,2]
[404250359,1770003038289,-151.0,0.00014976,2]
[404250360,1770003038299,-151.0,0.00014976,2]
[404250363,1770003038315,-151.0,0.00014976,2]
[404250365,1770003038328,-151.0,0.00014976,2]
[404250367,1770003038339,-151.0,0.00014976,2]
[404250369,1770003038349,-151.0,0.00014976,2]
[404250371,1770003038367,-151.0,0.00014976,2]
[404250374,1770003038380,-500.0,0.00014976,2]
[404250376,1770003038397,-500.0,0.00014976,2]
[404250378,1770003038407,-500.0,0.00014976,2]
[404250380,1770003038417,-500.0,0.00014976,2]
[404250382,1770003038427,-500.0,0.00014976,2]
[404250384,1770003038438,-500.0,0.00014976,2]
[404250386,1770003038448,-500.0,0.00014976,2]
[404250388,1770003038458,-428.20801284,0.00014976,2]
[404250390,1770003038469,-174.0,0.00014981,2]
[404250392,1770003038480,-177.31751461,0.00014984,2]
[404250394,1770003038490,-500.0,0.00014984,2]
[404250397,1770003038501,-158.0571909,0.00014984,2]
[404250399,1770003038511,-191.72358302,0.00014984,2]
[404250401,1770003038521,-358.32595841,0.00014984,2]
[404250403,1770003038530,-481.27233715,0.00014984,2]
[404250405,1770003038541,-192.53517147,0.00014984,2]
[404250407,1770003038552,-500.0,0.00014984,2]
[404250409,1770003038563,-500.0,0.00014984,2]
[404250411,1770003038574,-500.0,0.00014984,2]
[404250413,1770003038585,-500.0,0.00014984,2]
[404250415,1770003038595,-500.0,0.00014984,2]
[404250417,1770003038607,-500.0,0.00014984,2]
[404250420,1770003038623,-500.0,0.00014984,2]
[404250422,1770003038634,-500.0,0.00014984,2]
[404250424,1770003038644,-500.0,0.00014984,2]
[404250426,1770003038655,-500.0,0.00014984,2]
[404250428,1770003038665,-500.0,0.00014984,2]
[404250430,1770003038676,-325.92437639,0.00014984,2]
[404250433,1770003038691,-500.0,0.00014984,2]
[404250434,1770003038703,-500.0,0.00014984,2]
[404250435,1770003038715,-500.0,0.00014984,2]
[404250436,1770003038725,-500.0,0.00014984,2]
[404250437,1770003038736,-500.0,0.00014984,2]
[404250438,1770003038747,-500.0,0.00014984,2]
[404250439,1770003038759,-500.0,0.00014984,2]
[404250440,1770003038771,-500.0,0.00014984,2]
[404250441,1770003038782,-500.0,0.00014984,2]
[404250442,1770003038793,-500.0,0.00014984,2]
[404250443,1770003038804,-500.0,0.00014984,2]
[404250444,1770003038814,-500.0,0.00014984,2]
[404250445,1770003038826,-500.0,0.00014984,2]
[404250446,1770003038836,-500.0,0.00014984,2]
[404250447,1770003038848,-500.0,0.00014984,2]
[404250448,1770003038858,-500.0,0.00014984,2]
[404250449,1770003038874,-500.0,0.00014984,2]
[404250450,1770003038885,-500.0,0.00014984,2]
[404250451,1770003038896,-500.0,0.00014984,2]
[404250452,1770003038906,-500.0,0.00014984,2]
[404250453,1770003038916,-500.0,0.00014984,2]
[404250454,1770003038927,-500.0,0.00014984,2]
[404250455,1770003038937,-500.0,0.00014984,2]
[404250456,1770003038949,-500.0,0.00014984,2]
[404250457,1770003038961,-500.0,0.00014984,2]
[404250458,1770003038972,-500.0,0.00014984,2]
[404250459,1770003038982,-500.0,0.00014984,2]
[404250460,1770003038992,-500.0,0.00014984,2]
[404250461,1770003039003,-500.0,0.00014984,2]
[404250462,1770003039014,-500.0,0.00014984,2]
[404250463,1770003039025,-500.0,0.00014984,2]
[404250464,1770003039035,-500.0,0.00014984,2]
[404250465,1770003039045,-500.0,0.00014984,2]
[404250466,1770003039060,-500.0,0.00014984,2]
[404250467,1770003039070,-500.0,0.00014984,2]
[404250468,1770003039081,-500.0,0.00014984,2]
[404250469,1770003039092,-500.0,0.00014984,2]
[404250470,1770003039105,-500.0,0.00014984,2]
[404250471,1770003039120,-500.0,0.00014984,2]
[404250472,1770003039131,-500.0,0.00014984,2]
[404250473,1770003039142,-500.0,0.00014984,2]
[404250474,1770003039153,-500.0,0.00014984,2]
[404250475,1770003039165,-500.0,0.00014984,2]
[404250476,1770003039176,-500.0,0.00014984,2]
[404250477,1770003039187,-500.0,0.00014984,2]
[404250478,1770003039198,-500.0,0.00014984,2]
[404250479,1770003039207,-500.0,0.00014984,2]
[404250480,1770003039218,-500.0,0.00014984,2]
[404250481,1770003039227,-500.0,0.00014984,2]
[404250482,1770003039237,-500.0,0.00014984,2]
[404250483,1770003039247,-500.0,0.00014984,2]
[404250484,1770003039257,-500.0,0.00014984,2]
[404250485,1770003039267,-500.0,0.00014984,2]
[404250486,1770003039277,-500.0,0.00014984,2]
[404250487,1770003039287,-500.0,0.00014984,2]
[404250488,1770003039296,-500.0,0.00014984,2]
[404250490,1770003039306,-500.0,0.00014984,2]
[404250491,1770003039316,-500.0,0.00014984,2]
[404250492,1770003039327,-500.0,0.00014984,2]
[404250493,1770003039337,-1242.1306546,0.00014984,2]
[404250495,1770003039347,-1242.1306546,0.00014984,2]
[404250496,1770003039358,-1242.1306546,0.00014984,2]
[404250497,1770003039374,-1242.1306546,0.00014984,2]
[404250498,1770003039384,-1242.1306546,0.00014984,2]
[404250499,1770003039395,-1242.1306546,0.00014984,2]
[404250500,1770003039404,-500.0,0.00014984,2]
[404250501,1770003039415,-386.61384476,0.00014984,2]
[404250502,1770003039426,-500.0,0.00014984,2]
[404250503,1770003039440,-501.14291761,0.00014984,2]
[404250504,1770003039451,-500.0,0.00014984,2]
[404250505,1770003039461,-501.14291761,0.00014984,2]
[404250506,1770003039471,-500.0,0.00014984,2]
[404250507,1770003039481,-501.14291761,0.00014984,2]
[404250508,1770003039491,-500.0,0.00014984,2]
[404250509,1770003039502,-501.14291761,0.00014984,2]
[404250510,1770003039512,-501.14291761,0.00014984,2]
[404250511,1770003039521,-500.0,0.00014984,2]
[404250512,1770003039531,-371.1519428,0.00014984,2]
[404250513,1770003039540,-1001.14291761,0.00014984,2]
[404250514,1770003039550,-979.192,0.00014984,2]
[404250515,1770003039560,-288.76892517,0.00014984,2]
[404250516,1770003039570,-500.0,0.00014984,2]
[404250517,1770003039580,-68466.56696423,0.00014985,2]
[404250518,1770003039599,-140408.45886317,0.00014985,2]
[404250519,1770003039620,-75999.99999991,0.00014985,2]
[404250523,1770003039770,-5308.73,0.00014985,2]
[404250524,1770003039782,-14138.7903211,0.00014985,2]
[404250525,1770003039826,-356.88426417,0.00014985,2]
[404250526,1770003039884,-2283774.23493567,0.00014985,2]
[404250527,1770003040153,-15100.00000001,0.00014985,2]
[404250528,1770003040166,-1463.32386416,0.00014985,2]
[404250529,1770003040179,-198852.83731161,0.00014985,2]
[404250648,1770003043341,-365.4592,0.00014985,2]
[404250650,1770003043355,-2433.89951991,0.00014985,2]
[404250655,1770003043397,-442.19999999,0.00014985,2]
[404250661,1770003043453,-2200.0,0.00014985,2]
[404250724,1770003044092,-4534.72181691,0.00014985,2]
[404250728,1770003044145,-453.0,0.00014985,2]
[404250730,1770003044158,-17935.14852809,0.00014985,2]
[404250732,1770003044171,-538.38579,0.00014985,2]
[404250788,1770003045887,-168.65475044,0.00014887,2]
[404250789,1770003045899,-12970.45829969,0.00014985,2]
[404250790,1770003045944,-54256.90032138,0.00014985,2]
[404250791,1770003045955,-167.8843,0.00014987,2]
[404250792,1770003045965,-8495.6286,0.00014987,2]
[404250793,1770003045976,-250.0,0.00015,2]
[404250794,1770003045986,-154.17706652,0.00015027,2]
[404250795,1770003045996,-532.32015487,0.00015086,2]
[404250796,1770003046006,-539.36020459,0.00015086,2]
[404250797,1770003046017,-529.30144481,0.00015086,2]
[404250798,1770003046026,-6283.39,0.00015123,2]
[404250799,1770003046036,-6283.39,0.00015162,2]
[404250800,1770003046046,-151.0,0.00015192,2]
[404250801,1770003046057,-504.09113021,0.00015195,2]
[404250802,1770003046067,-6283.39,0.00015202,2]
[404250803,1770003046078,-7735.71779784,0.00015222,2]
[404250804,1770003046088,-1000.0,0.00015227,2]
[404250805,1770003046098,-6283.39,0.00015242,2]
[404250806,1770003046108,-300.0,0.00015265,2]
[404250807,1770003046121,-226.68058358,0.00015265,2]
[404250808,1770003046132,-151.0,0.00015276,2]
[404250809,1770003046147,-6283.39,0.00015282,2]
[404250810,1770003046157,-1000.0,0.00015316,2]
[404250811,1770003046167,-6283.39,0.00015322,2]
[404250812,1770003046178,-166.0,0.0001533,2]
[404250813,1770003046188,-250.0,0.00015342,2]
[404250814,1770003046198,-300.0,0.00015342,2]
[404250815,1770003046208,-6283.39,0.00015362,2]
[404250816,1770003046219,-212.44,0.00015388,2]
[404250817,1770003046229,-6283.39,0.00015401,2]
[404250818,1770003046239,-6283.39,0.00015441,2]
[404250819,1770003046250,-6283.39,0.00015481,2]
[404250820,1770003046261,-769.72130835,0.0001549,2]
[404250821,1770003046271,-255.0,0.00015493,2]
[404250822,1770003046280,-154.17706649,0.00015506,2]
[404250823,1770003046291,-6283.39,0.00015521,2]
[404250824,1770003046302,-500.0,0.00015524,2]
[404250825,1770003046312,-7735.71779784,0.00015557,2]
[404250827,1770003046322,-6283.39,0.00015561,2]
[404250828,1770003046335,-1680.0,0.00015587,2]
[404250829,1770003046345,-6283.39,0.000156,2]
[404250830,1770003046355,-6283.39,0.0001564,2]
[404250831,1770003046368,-6283.39,0.0001568,2]
[404250832,1770003046379,-1000.0,0.00015691,2]
[404250833,1770003046389,-6283.39,0.0001572,2]
[404250834,1770003046399,-167.0,0.0001572,2]
[404250835,1770003046409,-6283.39,0.0001576,2]
[404250836,1770003046421,-6283.39,0.00015799,2]
[404250837,1770003046430,-195.21118185,0.00015807,2]
[404250838,1770003046440,-2097.42961528,0.00015839,2]
[404250839,1770003046493,-4185.96038472,0.00015839,2]
[404250840,1770003046503,-379.07959606,0.00015879,2]
[404250841,1770003046519,-400.13623191,0.00015879,2]
[404250842,1770003046532,-426.04450591,0.00015879,2]
[404250850,1770003092582,1014.04684013,0.00021,120]
[404250876,1770003676367,840.2560784,0.00012849,2]
[404250877,1770003698269,500.0,0.000136,4]
[404250878,1770003700350,1000.0,0.000137,5]
[404250879,1770003702546,1500.0,0.000138,5]
[404250880,1770003704638,2000.0,0.000139,5]
[404250881,1770003757472,1278.66,0.00011233,2]
[404250888,1770003961410,166.66,0.00012707,2]
[404250889,1770004027663,200.0,0.000136,4]
[404250890,1770004029986,500.0,0.000137,5]
[404250891,1770004031884,800.0,0.000138,5]
[404250892,1770004033994,1100.0,0.000139,5]
[404250895,1770004136014,-166.66,0.00012974,2]
[404250896,1770004136038,-166.66,0.00013242,2]
[404250897,1770004136061,-166.66,0.00013509,2]
[404250898,1770004136083,-547.20043301,0.00013599,2]
[404250899,1770004136106,-200.0,0.00013621,2]
[404250900,1770004136128,-1039.77,0.00013686,2]
[404250901,1770004136151,-507.22,0.00013699,2]
[404250902,1770004136417,-200.0,0.00013699,2]
[404250903,1770004136440,-166.66,0.00013777,2]
[404250904,1770004136464,-547.20043301,0.00013786,2]